[Event "FRA-ch Teams Top 16-A 2022"]
[Site "Chartres"]
[Date "2022.06.10"]
[Round "2.15"]
[White "Fardet, Elouan"]
[Black "Le Roux, Jean-Pierre"]
[Result "1-0"]
[ECO "B33"]
[WhiteElo "2180"]
[BlackElo "2513"]
[Annotator "TA"]
[PlyCount "96"]
[EventDate "2022.06.09"]
[EventType "team-tourn"]
[EventCountry "FRA"]
[SourceTitle "playchess.com"]
[Source "ChessBase"]
[SourceQuality "1"]
[TimeControl "40/5400+30:1800+30"]

{[%evp 9,96,31,65,43,55,38,53,53,58,50,42,46,60,60,49,65,77,64,76,44,40,16,44,-70,-76,-61,-71,-69,-61,-52,-70,-111,-112,-97,-112,-95,-114,-95,-83,-86,-84,-87,-81,-77,-97,-73,-92,-100,-45,-86,-88,-92,-97,-104,-41,-72,-37,-75,0,-80,-72,-70,-72,-180,-177,-167,-89,-264,-251,-243,-231,-231,-179,-191,-176,-310,-252,-247,-250,-250,-243,-337,-312,-423,-421,-422,-418,-543,-563]} 1. e4 {[%emt 0:00:04]} c5 {[%emt 0:00:44]} 2. Nf3 {[%emt 0:00:16]} Nc6 {[%emt 0:00:12]} 3. d4 {[%emt 0:00:28]} cxd4 {[%emt 0:00:05]} 4. Nxd4 {[%emt 0:00:06]} Nf6 {[%emt 0:00:46]} 5. Nc3 {[%emt 0:00:07]} h5 {[%emt 0:00:37]} 6. Bc4 {[%emt 0:22:17] White is more active. B33: Sicilian: Pelikan and Sveshnikov Variations.} g6 {[%emt 0:03:20]} 7. f3 {[%emt 0:16:55]} Bg7 {[%emt 0:08:00]} 8. Be3 {[%emt 0:02:37] [#] White is slightly better.} O-O $146 {[%emt 0:12:53]} ({Predecessor:} 8... d6 9. Qd2 Bd7 10. O-O-O a6 11. Kb1 Na5 12. Bb3 b5 13. h3 Nxb3 14. Nxb3 a5 15. Nd5 Nxd5 16. exd5 a4 17. Nd4 a3 18. b3 {0-1 (65) Coman,L (1810)-Turcu,I (2086) Targu Mures 2014}) 9. Qd2 {[%emt 0:03:57]} d6 {[%emt 0:18:26]} 10. O-O-O {[%emt 0:02:38]} Bd7 {[%emt 0:00:09]} 11. Kb1 {[%emt 0:10:31]} Rc8 {[%emt 0:05:21]} 12. Bb3 {[%emt 0:01:49]} Ne5 {[%emt 0:21:52][%cal Bc6e5,Be5c4,Bc4b2][%mdl 32]} 13. Bh6 {[%emt 0:09:21]} Nc4 {[%emt 0:04:52]} 14. Qg5 {[%emt 0:01:25]} (14. Bxc4 $5 Bxh6 15. Qxh6 (15. Bxf7+ $2 Kg7 $19) 15... Rxc4 16. Nce2 $14) 14... Rc5 {[%emt 0:03:05]} 15. Qc1 {[%emt 0:04:39]} (15. Nf5 {keeps more tension.} Bxf5 16. Bxc4 Be6 17. Qxc5 dxc5 18. Bxg7 Bxc4 19. Rxd8 Rxd8 20. Bxf6 exf6 21. Rd1) 15... b5 {[%emt 0:00:31]} (15... Na3+ {is interesting.} 16. Ka1 b5 17. Bxg7 Kxg7 18. Qd2 b4) 16. Ncxb5 {[%emt 0:11:38]} Bxb5 $15 {[%emt 0:05:59]} (16... Nxb2 {with more complications.} 17. Bxg7 Kxg7 18. Qxb2 Bxb5 19. Nxb5 Rxb5 20. c4 Rc5) 17. Nxb5 {[%emt 0:00:35]} Nxb2 $1 {[%emt 0:01:30]} 18. Bxg7 {[%emt 0:04:13]} Kxg7 {[%emt 0:00:08]} 19. Qxb2 {[%emt 0:01:44]} Rxb5 {[%emt 0:00:05]} 20. e5 {[%emt 0:01:53]} Rxe5 {[%emt 0:01:16]} 21. Qxe5 {[%emt 0:00:15]} dxe5 {[%emt 0:00:04]} 22. Rxd8 {[%emt 0:00:06]} Rxd8 $17 {[%emt 0:00:01][%mdl 4096] Endgame KRB-KRN} 23. Re1 {[%emt 0:00:31]} Nd7 {[%emt 0:08:01]} 24. Rd1 {[%emt 0:00:24]} Kf6 {[%emt 0:01:18]} 25. Kc1 {[%emt 0:00:13]} e6 {[%emt 0:00:49]} 26. Rd6 {[%emt 0:00:30]} Ke7 {[%emt 0:00:07]} 27. Ra6 {[%emt 0:00:03]} Ra8 {[%emt 0:00:11]} 28. Kd2 {[%emt 0:02:54]} Kd8 {[%emt 0:01:21]} ({Better is} 28... Nb8 $17 29. Ra5 Nc6) 29. Ke3 {[%emt 0:01:09]} Kc7 {[%emt 0:00:58]} 30. Ba4 {[%emt 0:00:54]} Nb6 {[%emt 0:00:25] [#] Threatens to win with ...Kb7.} 31. Bb3 {[%emt 0:00:05]} Kd6 {[%emt 0:01:54]} (31... Kb7 $17 32. Ra5 Nd7) 32. c3 {[%emt 0:01:37]} Kc6 {[%emt 0:00:57] White must now prevent ...Kb5.} 33. Ra5 {[%emt 0:00:30]} Kd6 {[%emt 0:00:21]} 34. Ra6 {[%emt 0:00:02]} h4 {[%emt 0:00:35]} 35. c4 {[%emt 0:00:56]} Kc7 {[%emt 0:00:35]} 36. Ke4 {[%emt 0:00:31]} (36. Kf2 $17 {was necessary.}) 36... Nd7 $19 {[%emt 0:00:10] [#] And now ...Nc5+ would win.} 37. Ra5 {[%emt 0:00:01] Against Nc5+} a6 {[%emt 0:00:43]} (37... Kb6 $19 38. Rb5+ Kc6) 38. f4 $2 {[%emt 0:01:00] Now White is beyond hope.} (38. c5 $17 {was forced.}) 38... Kb6 {[%emt 0:00:20]} 39. Ra3 {[%emt 0:00:02]} f5+ {[%emt 0:00:11]} 40. Ke3 {[%emt 0:00:08]} Rc8 {[%emt 0:01:06][%cal Oh4h3]} 41. fxe5 {[%emt 0:31:20]} Nxe5 {[%emt 0:30:31]} 42. Kd4 {[%emt 0:00:16]} (42. c5+ $142 Rxc5 43. Bxe6) 42... Nc6+ {[%emt 0:00:00]} 43. Ke3 {[%emt 0:00:00]} e5 {[%emt 0:00:00]} 44. c5+ {[%emt 0:00:00]} Kb5 {[%emt 0:00:00]} ({Don't blunder} 44... Kxc5 $2 45. Bf7) 45. Bc2 {[%emt 0:00:00]} Kxc5 {[%emt 0:00:00]} 46. Bd3 {[%emt 0:00:00]} a5 {[%emt 0:00:00]} 47. Rc3+ {[%emt 0:00:00]} Kd6 {[%emt 0:00:00]} 48. Bb5 {[%emt 0:00:00]} Ne7 {[%emt 0:00:00][%mdl 32768] Weighted Error Value: White=0.27 (precise) /Black=0.16 (very precise) . Loss on time!?} 1-0

[Event "FRA-ch Teams Top 16-A 2022"]
[Site "Chartres"]
[Date "2022.06.10"]
[Round "2.16"]
[White "Bellahcene, Bilel"]
[Black "Rouzes, Sibylle-Anne"]
[Result "1-0"]
[ECO "B18"]
[WhiteElo "2521"]
[BlackElo "1580"]
[Annotator "TA"]
[PlyCount "55"]
[EventDate "2022.06.09"]
[EventType "team-tourn"]
[EventCountry "FRA"]
[SourceTitle "playchess.com"]
[Source "ChessBase"]
[SourceQuality "1"]
[TimeControl "40/5400+30:1800+30"]

{[%evp 13,55,15,16,-11,45,46,70,74,63,9,13,14,20,17,2,-12,0,0,33,27,40,33,28,17,51,50,100,114,156,176,302,243,318,294,396,404,406,365,777,767,1166,1174,1376,1350]} 1. e4 {[%emt 0:00:33]} c6 {[%emt 0:00:11]} 2. d4 {[%emt 0:00:43]} d5 {[%emt 0:00:14]} 3. Nc3 {[%emt 0:00:04]} dxe4 {[%emt 0:00:24]} 4. Nxe4 {[%emt 0:00:05]} Bf5 {[%emt 0:00:23]} 5. Ng3 {[%emt 0:00:05]} Bg6 {[%emt 0:00:15]} 6. Bc4 {[%emt 0:01:11]} e6 {[%emt 0:02:29]} 7. N1e2 {[%emt 0:00:11]} Nf6 {[%emt 0:06:53]} 8. h4 {[%emt 1:31:38][%cal Bh2h4,Bh4h5,Bh5h6][%mdl 32] [#] B18: Classical Caro-Kann: 4...Bf5 sidelines.} Qa5+ $146 {[%emt 0:54:07]} (8... h6 $1 $11) ({Predecessor:} 8... h6 9. Nf4 Bh7 10. c3 Nbd7 11. Qf3 Bd6 12. Nfh5 O-O 13. Be3 Bg6 14. O-O-O Bxg3 15. Nxg3 b5 16. Bb3 a5 17. h5 Bh7 18. Bc2 Bxc2 19. Kxc2 {0-1 (52) Iordachescu,V (2597)-Nisipeanu,L (2674) Bucharest 2018}) 9. Bd2 {[%emt 0:00:00]} Bb4 {[%emt 0:00:30]} 10. c3 {[%emt 0:00:00] White is slightly better.} Bd6 {[%emt 0:00:39]} 11. b4 {[%emt 0:00:00]} (11. h5 $1 $14 Be4 12. Qb3) 11... Qc7 $11 {[%emt 0:00:52]} 12. h5 {[%emt 0:00:00]} Be4 {[%emt 0:02:36]} 13. Nxe4 {[%emt 0:00:00]} Nxe4 {[%emt 0:00:26]} 14. Be3 {[%emt 0:00:00]} Nd7 {[%emt 0:02:29]} 15. a4 {[%emt 0:00:00]} Nb6 {[%emt 0:12:20] Pair of Knights!} 16. Bd3 $36 {[%emt 0:00:00][%mdl 2048] White has some pressure.} Nf6 {[%emt 0:00:44]} 17. h6 {[%emt 0:04:30]} g6 {[%emt 0:01:50]} 18. Bg5 {[%emt 0:00:00]} Nfd5 {[%emt 0:06:01]} 19. g3 {[%emt 0:00:00]} f6 {[%emt 0:00:56]} ({Black should try} 19... O-O $14) 20. Bd2 {[%emt 0:00:00]} Nd7 {[%emt 0:03:24]} 21. Qb3 {[%emt 0:00:00]} Bf8 {[%emt 0:02:27]} (21... Qd8 $142 22. c4 Nc7) 22. c4 $18 {[%emt 0:00:00]} Ne7 {[%emt 0:00:25] [#]} 23. Nf4 $1 {[%emt 0:00:00]} e5 {[%emt 0:00:54]} 24. Ne6 {[%emt 0:00:00]} Qc8 {[%emt 0:00:29]} 25. d5 {[%emt 0:00:00]} cxd5 $2 {[%emt 0:00:31]} (25... c5 26. Rb1 Ng8) 26. cxd5 {[%emt 0:00:00] White is clearly winning.} Nb6 {[%emt 0:00:29]} 27. Rc1 {[%emt 0:00:00]} Qd7 {[%emt 0:00:10]} 28. Bb5 {[%emt 0:00:00] Weighted Error Value: White=0.10 (very precise) /Black=0.36} 1-0

[Event "FRA-ch Teams Top 16-A 2022"]
[Site "Chartres"]
[Date "2022.06.10"]
[Round "2.17"]
[White "Alonso Rosell, Alvar"]
[Black "Dourerassou, Jonathan"]
[Result "1-0"]
[ECO "E06"]
[WhiteElo "2557"]
[BlackElo "2446"]
[Annotator "TA"]
[PlyCount "67"]
[EventDate "2022.06.09"]
[EventType "team-tourn"]
[EventCountry "FRA"]
[SourceTitle "playchess.com"]
[Source "ChessBase"]
[SourceQuality "1"]
[TimeControl "40/5400+30:1800+30"]

{[%evp 11,67,0,40,27,34,26,36,17,25,21,43,9,41,-18,55,66,55,51,64,9,9,36,13,7,85,84,79,75,51,120,258,199,359,363,355,337,324,364,431,449,1452,1448,1443,1414,1447,1422,1358,1328,2125,2111,2722,2703,2579,2387,29974,29968,5335,5156]} 1. d4 {[%emt 0:00:03]} d5 {[%emt 0:00:09]} 2. c4 {[%emt 0:00:04]} e6 {[%emt 0:00:08]} 3. Nf3 {[%emt 0:00:04]} Nf6 {[%emt 0:00:07]} 4. g3 {[%emt 0:00:03]} Be7 {[%emt 0:00:07]} 5. Bg2 {[%emt 0:00:03]} O-O {[%emt 0:00:16]} 6. Qc2 {[%emt 0:00:02]} Nc6 {[%emt 0:03:28]} 7. a3 {[%emt 0:41:28] E06: Closed Catalan: Early deviations.} dxc4 {[%emt 0:02:02]} 8. Qxc4 {[%emt 0:00:23]} Qd5 {[%emt 0:06:09]} 9. Nbd2 {[%emt 0:00:38] White is slightly better.} Rd8 {[%emt 0:01:39][%cal Rc6d4]} 10. e3 {[%emt 0:00:42][%cal Be2e3,Be3e4,Be4e5][%mdl 32] [#]} Qh5 $146 {[%emt 0:20:15]} ({Predecessor:} 10... a5 11. O-O a4 12. Qc2 Qf5 13. Qd1 Qb5 14. Nb1 e5 15. Nc3 Qa5 16. Qe1 exd4 17. Nxd4 {½-½ (31) Chernin,A (2615)-Speelman,J (2600) New York 1994}) 11. h3 {[%emt 0:06:16]} (11. b4 $5 {[%cal Rb4b5]}) 11... Bd6 {[%emt 0:08:15]} 12. Qe2 {[%emt 0:12:37]} (12. b4 $14) 12... Bd7 {[%emt 0:07:17]} (12... e5 $1 $11) 13. e4 $14 {[%emt 0:09:32] Hoping for e5.} Bf8 {[%emt 0:09:20]} 14. O-O {[%emt 0:03:57]} Qa5 {[%emt 0:06:18]} 15. Rd1 {[%emt 0:05:47]} ({White should play} 15. Qd3 $14) 15... Qa4 $11 {[%emt 0:01:08]} 16. e5 {[%emt 0:11:57]} Nd5 {[%emt 0:00:42]} 17. Ne4 {[%emt 0:00:14]} Na5 {[%emt 0:00:22] [#]} (17... h6 $11) 18. Nfg5 $1 $16 {[%emt 0:04:47]} h6 {[%emt 0:01:28] [#]} (18... f6 $2 19. exf6 gxf6 20. Nc5 Bxc5 21. dxc5 $18) 19. Nxf7 {[%emt 0:00:25] White is more active.} Kxf7 {[%emt 0:00:13]} 20. Bxh6 $1 {[%emt 0:00:07]} Be8 {[%emt 0:11:48] Black cannot hold the game after this.} (20... gxh6 $16 21. Qh5+ Ke7 22. Qh4+ Kf7) 21. Bg5 {[%emt 0:00:52]} Kg8 $2 {[%emt 0:00:24]} (21... Rd7 {might work better.}) 22. Bxd8 $18 {[%emt 0:00:51]} Rxd8 {[%emt 0:00:10]} 23. b4 {[%emt 0:00:10]} Nb3 {[%emt 0:07:09]} 24. Rab1 {[%emt 0:00:01]} ({Less strong is} 24. Ra2 Be7 $16) 24... Nxd4 {[%emt 0:00:44]} 25. Rxd4 {[%emt 0:00:22]} Nf4 {[%emt 0:00:03]} (25... Bg6 $142 26. Rbd1 Qe8) 26. Nf6+ {[%emt 0:00:45]} gxf6 {[%emt 0:03:56]} 27. Qg4+ {[%emt 0:00:51]} Ng6 {[%emt 0:05:06]} 28. Rxd8 {[%emt 0:00:06]} f5 {[%emt 0:00:04]} 29. Qg5 {[%emt 0:00:17] Threatens to win with Rc1.} Kh7 {[%emt 0:00:28]} 30. b5 {[%emt 0:00:32]} Bxb5 {[%emt 0:00:56] [#]} 31. Rxf8 $1 {[%emt 0:00:22]} Nxf8 {[%emt 0:00:07]} 32. Rb4 {[%emt 0:00:06]} Qd1+ {[%emt 0:00:14]} 33. Kh2 {[%emt 0:00:04]} Ng6 {[%emt 0:00:40]} 34. Rxb5 {[%emt 0:00:06] Weighted Error Value: White=0.15 (very precise) /Black=0.71} 1-0

[Event "FRA-ch Teams Top 16-A 2022"]
[Site "Chartres"]
[Date "2022.06.10"]
[Round "2.18"]
[White "Sochacki, Christophe"]
[Black "Relange, Eloi"]
[Result "1/2-1/2"]
[ECO "C41"]
[WhiteElo "2493"]
[BlackElo "2456"]
[Annotator "TA"]
[PlyCount "118"]
[EventDate "2022.06.09"]
[EventType "team-tourn"]
[EventCountry "FRA"]
[SourceTitle "playchess.com"]
[Source "ChessBase"]
[SourceQuality "1"]
[TimeControl "40/5400+30:1800+30"]

{[%evp 9,118,25,61,45,70,84,74,43,59,59,49,70,61,72,65,40,54,47,32,37,40,31,22,19,18,20,20,29,31,37,40,43,39,11,34,38,68,57,56,58,65,58,61,61,61,64,74,77,77,81,80,80,76,64,63,30,35,35,36,35,36,35,46,47,55,77,72,5,19,19,19,19,19,20,24,24,42,19,24,19,24,19,27,21,27,19,19,15,27,24,27,19,27,15,17,0,0,0,20,19,27,20,27,27,27,25,27,27,27,20,35]} 1. e4 {[%emt 0:00:02]} d6 {[%emt 0:05:17]} 2. d4 {[%emt 0:00:08]} Nf6 {[%emt 0:00:04]} 3. Nc3 {[%emt 0:00:12]} e5 {[%emt 0:00:04]} 4. Nf3 {[%emt 0:00:08]} Nbd7 {[%emt 0:00:07]} 5. h3 {[%emt 0:00:43]} g6 {[%emt 0:01:36]} 6. Bg5 {[%emt 0:12:32] Threatens to win with dxe5. C41: Philidor Defence.} Bg7 {[%emt 0:10:40] [#]} 7. Nxe5 $146 {[%emt 0:09:07]} ({Predecessor:} 7. dxe5 dxe5 8. Qd2 c6 9. O-O-O Qe7 10. g4 O-O 11. Qd6 Qxd6 12. Rxd6 Re8 13. a4 {0-1 (34) Mendivil Anton,D (2271)-Strikovic,A (2551) El Sauzal 2007}) 7... h6 {[%emt 0:17:09]} 8. Bxf6 {[%emt 0:05:59] White is much more active. The black rooks are badly placed. White is better.} Nxf6 {[%emt 0:01:07]} 9. Nf3 {[%emt 0:03:10]} O-O {[%emt 0:01:20]} 10. Bd3 {[%emt 0:00:43]} c5 {[%emt 0:10:30]} 11. dxc5 {[%emt 0:06:21]} dxc5 {[%emt 0:00:22]} 12. Qd2 {[%emt 0:57:25]} Be6 {[%emt 0:01:38]} 13. O-O {[%emt 0:00:00]} c4 {[%emt 0:05:13]} 14. Be2 {[%emt 0:00:00]} Qb6 {[%emt 0:01:20]} 15. a4 {[%emt 0:01:30][%cal Ba2a4,Ba4a5][%mdl 32]} (15. Rad1 {looks sharper.} Nh5 16. e5 Ng3 17. Rfe1) 15... Rad8 {[%emt 0:08:41]} 16. Qc1 {[%emt 0:00:00]} Rfe8 {[%emt 0:00:26]} 17. Re1 {[%emt 0:00:00]} Nd7 {[%emt 0:05:22]} 18. a5 {[%emt 0:00:00]} Qb4 {[%emt 0:04:52]} 19. Ra4 {[%emt 0:00:00][%cal Ba1a4,Ba4b4,Bb4b7,Bb7a7][%mdl 32]} Qc5 {[%emt 0:00:05]} 20. Bf1 {[%emt 0:00:00]} Qc6 {[%emt 0:11:29]} 21. Rb4 {[%emt 0:00:00]} Qc7 {[%emt 0:02:39]} (21... b6 {keeps more tension.} 22. Nd5 b5 23. b3 cxb3 24. Bxb5 Qxc2 25. Qxc2 bxc2 26. Rc1 Bxd5 27. exd5 Rb8) 22. Nd5 {[%emt 0:00:00] Pair of Knights!} Qxa5 {[%emt 0:02:02]} 23. Rxb7 {[%emt 0:00:00]} Bxd5 {[%emt 0:05:48]} 24. exd5 {[%emt 0:00:00]} Rxe1 {[%emt 0:00:59]} 25. Qxe1 {[%emt 0:00:00]} Qxe1 {[%emt 0:03:05]} ({Weaker is} 25... Qxd5 26. Rxa7 Bxb2 27. c3 $16) 26. Nxe1 {[%emt 0:00:00]} Nb6 {[%emt 0:00:09]} 27. Rxa7 {[%emt 0:00:00]} Rxd5 {[%emt 0:00:06]} 28. Rb7 {[%emt 0:00:00]} Rd1 {[%emt 0:01:45]} 29. Rb8+ {[%emt 0:00:00]} Kh7 {[%emt 0:00:08]} 30. Rxb6 {[%emt 0:00:00]} Rxe1 $16 {[%emt 0:00:06][%mdl 4096] Endgame KRB-KRB} 31. Rb7 {[%emt 0:00:00]} Rb1 {[%emt 0:01:14]} 32. b4 {[%emt 0:00:00]} c3 {[%emt 0:00:05]} 33. b5 {[%emt 0:01:08]} Rc1 {[%emt 0:00:26]} 34. Rxf7 {[%emt 0:00:14] Hoping for b6.} Rxc2 {[%emt 0:00:09]} 35. Rc7 {[%emt 0:04:44]} (35. b6 {with more complications.} Rb2 36. b7 Kg8 37. Rc7) 35... h5 {[%emt 0:00:26]} 36. g4 {[%emt 0:00:03]} hxg4 {[%emt 0:00:31]} 37. hxg4 {[%emt 0:04:51]} Kh8 {[%emt 0:02:00]} 38. b6 {[%emt 0:00:30]} ({Better is} 38. Bd3 $16 Rd2 {[#]} 39. b6 $1 (39. Bxg6 Bd4 $11)) 38... Rb2 {[%emt 0:00:30]} 39. b7 {[%emt 0:00:30]} Be5 {[%emt 0:00:30]} 40. Rc5 {[%emt 0:00:30]} c2 {[%emt 0:00:30] White must now prevent ...Bf4.} 41. Kg2 {[%emt 0:30:30]} Rxb7 {[%emt 0:13:05] And now ...Rc7 would win.} (41... Bf4 {feels hotter.} 42. b8=R+ Bxb8 43. Bd3 Rb4) 42. Rxc2 {[%emt 0:00:30]} Rb2 {[%emt 0:17:55]} 43. Rc8+ {[%emt 0:00:00]} Kg7 {[%emt 0:00:30]} 44. Bd3 {[%emt 0:01:00]} g5 {[%emt 0:00:30]} 45. Kf3 {[%emt 0:00:30]} Bf4 {[%emt 0:00:30]} 46. Re8 {[%emt 0:00:30]} Kf6 {[%emt 0:00:30]} 47. Re1 {[%emt 0:00:00]} Be5 48. Rh1 {[%emt 0:01:00]} Bf4 {[%emt 0:01:00]} 49. Bf5 {[%emt 0:00:00]} Kf7 {[%emt 0:00:00]} 50. Rf1 {[%emt 0:00:00]} Kf6 {[%emt 0:00:00]} 51. Ke4 {[%emt 0:00:00]} Rb4+ {[%emt 0:00:00]} 52. Kd5 {[%emt 0:00:00]} Rb5+ {[%emt 0:00:00]} 53. Kc6 {[%emt 0:00:00]} Rb2 {[%emt 0:00:00]} 54. f3 {[%emt 0:00:00]} Rd2 {[%emt 0:00:00]} 55. Rh1 {[%emt 0:00:00]} Kf7 {[%emt 0:00:00]} 56. Rh7+ {[%emt 0:00:00]} Kf6 {[%emt 0:00:00]} 57. Be4 {[%emt 0:00:00]} Rd6+ {[%emt 0:00:00]} 58. Kc5 {[%emt 0:00:00]} Rd1 {[%emt 0:05:00]} 59. Rh6+ Ke7 {[%emt 0:00:00] Weighted Error Value: White=0.08 (flawless) /Black=0.05 (flawless)} 1/2-1/2

[Event "FRA-ch Teams Top 16-A 2022"]
[Site "Chartres"]
[Date "2022.06.10"]
[Round "2.19"]
[White "Song, Julien"]
[Black "Sochacki, Wojtek"]
[Result "1/2-1/2"]
[ECO "D27"]
[WhiteElo "2388"]
[BlackElo "2324"]
[Annotator "TA"]
[PlyCount "88"]
[EventDate "2022.06.09"]
[EventType "team-tourn"]
[EventCountry "FRA"]
[SourceTitle "playchess.com"]
[Source "ChessBase"]
[SourceQuality "1"]
[TimeControl "40/5400+30:1800+30"]

{[%evp 15,88,52,52,35,53,51,74,53,80,49,44,35,46,34,63,17,23,17,38,39,43,27,50,37,48,8,14,14,23,13,48,27,29,22,58,47,48,56,69,57,65,61,72,72,75,-64,-63,-88,-93,-77,-94,-105,-93,-95,-108,-99,-101,-101,-34,-37,-29,-40,-27,-18,0,0,0,0,0,0,0,0,0,0,0]} 1. d4 {[%emt 0:00:03]} d5 {[%emt 0:04:28]} 2. c4 {[%emt 0:01:10]} dxc4 {[%emt 0:00:14]} 3. Nf3 {[%emt 0:02:20]} Nf6 {[%emt 0:00:05]} 4. e3 {[%emt 0:00:42]} e6 {[%emt 0:00:03]} 5. Bxc4 {[%emt 0:00:43]} a6 {[%emt 0:00:36]} 6. O-O {[%emt 0:00:46]} c5 {[%emt 0:00:03]} 7. dxc5 {[%emt 0:02:04]} Bxc5 {[%emt 0:00:16]} 8. Qxd8+ {[%emt 0:00:13]} Kxd8 {[%emt 0:00:04]} 9. Ne5 {[%emt 0:06:15] D27: Queen's Gambit Accepted: Classical main line: 7 e4!? and 7 a4.} Ke8 {[%emt 0:16:36] [#]} 10. Be2 $146 {[%emt 0:08:53]} ({Predecessor:} 10. b3 Nbd7 11. Ba3 Bxa3 12. Nxd7 Bb2 13. Nb6 Rb8 14. Nc3 Bxc3 15. Rac1 Ba5 16. Nxc8 Rxc8 17. Bb5+ Ke7 18. Rxc8 Rxc8 19. Bd3 Bd2 20. Bc4 b5 21. Rd1 bxc4 22. Rxd2 cxb3 23. axb3 Rc1+ {0-1 (23) Karlsson,R (1152)-Arnold,L (1142) IECC email 1998}) 10... Nbd7 {[%emt 0:08:16]} 11. Nd3 {[%emt 0:02:23] White is better.} Be7 {[%emt 0:02:59]} 12. Bd2 {[%emt 0:38:03]} Ne4 {[%emt 0:36:31]} 13. Rc1 {[%emt 0:03:02]} Nxd2 {[%emt 0:01:20]} 14. Nxd2 {[%emt 0:00:09]} Rb8 {[%emt 0:12:25]} 15. Nb3 {[%emt 0:14:56]} (15. Rc7 $14) 15... Bd6 $11 {[%emt 0:03:34]} 16. Rc2 {[%emt 0:08:19]} Nb6 {[%emt 0:02:42]} 17. Bf3 {[%emt 0:02:23]} Ke7 {[%emt 0:01:52]} 18. Ndc5 {[%emt 0:00:38]} Nd7 {[%emt 0:03:13]} 19. Ne4 {[%emt 0:01:49] Pair of Knights!} Be5 {[%emt 0:00:12]} 20. Na5 {[%emt 0:00:14]} f5 {[%emt 0:00:12]} 21. Nd2 {[%emt 0:00:35]} Rd8 {[%emt 0:03:34]} 22. Rac1 {[%emt 0:00:09]} Nb6 {[%emt 0:00:37]} 23. Ndb3 {[%emt 0:00:39]} Na4 {[%emt 0:01:11]} 24. Nd4 {[%emt 0:00:43]} Bxd4 {[%emt 0:00:53]} 25. exd4 {[%emt 0:00:03] Black must now prevent Nc4.} (25. Rc7+ {with more complications.} Kf6 26. exd4 Nb6 27. Rd1) 25... Nb6 {[%emt 0:00:31]} 26. Rc7+ {[%emt 0:04:06]} Rd7 {[%emt 0:00:15]} 27. b3 {[%emt 0:01:17] White is much more active. The black rooks are badly placed.} Kd8 {[%emt 0:00:36][%cal Be7d8,Bd8d7,Bd7d6][%mdl 32]} 28. Rxd7+ {[%emt 0:00:19]} Kxd7 {[%emt 0:00:03]} 29. Kf1 {[%emt 0:00:28]} Nd5 {[%emt 0:00:37]} 30. Bxd5 {[%emt 0:00:14]} (30. Ke2 $16) 30... exd5 $16 {[%emt 0:00:03][%mdl 4096] Endgame KRB-KRN} 31. h4 {[%emt 0:00:40]} Kd6 {[%emt 0:00:05]} 32. b4 {[%emt 0:00:49]} Bd7 {[%emt 0:00:04]} 33. f3 {[%emt 0:00:50]} b6 {[%emt 0:00:08]} 34. Nb3 {[%emt 0:00:13]} Bb5+ {[%emt 0:00:10]} 35. Kf2 {[%emt 0:00:11]} Re8 {[%emt 0:01:46] [#] ...Re2+ is the strong threat.} 36. Rc2 {[%emt 0:00:16] Prevents Re2+.} Bd3 {[%emt 0:00:11]} (36... f4 $17) 37. Rd2 $1 $15 {[%emt 0:00:25]} Bc4 {[%emt 0:00:06] Hoping for ...Kc6.} 38. Nc1 $1 {[%emt 0:01:39]} Kc6 {[%emt 0:01:44] aiming for ...Kb5.} 39. a4 {[%emt 0:00:18]} a5 {[%emt 0:00:52] The position is equal.} 40. bxa5 {[%emt 0:00:46]} bxa5 {[%emt 0:00:01]} 41. Rb2 {[%emt 0:10:53] Inhibits Rb8.} Kc7 {[%emt 0:10:53]} 42. g3 {[%emt 0:06:31]} g6 {[%emt 0:01:51]} 43. Ne2 {[%emt 0:03:08]} Bxe2 {[%emt 0:10:47]} 44. Rxe2 {[%emt 0:00:12]} Rxe2+ {[%emt 0:00:07] Weighted Error Value: White=0.14 (very precise) /Black=0.11 (very precise)} 1/2-1/2